fUSD/lending_fUSD_20240614
["ID","MTS","AMOUNT","RATE_DAILY","PERIOD"]
[329416177,1718328686694,-500.0,0.00024657,2]
[329416178,1718328686707,-500.0,0.00024657,2]
[329416179,1718328686719,-3909.82,0.00024657,2]
[329416180,1718328686736,-943.27,0.00024657,2]
[329416181,1718328686748,-151.0,0.00024657,7]
[329416182,1718328686761,-1168.64,0.00024657,2]
[329416183,1718328686777,-1483.04,0.00024657,2]
[329416184,1718328686801,-500.0,0.00024657,2]
[329416185,1718328686813,-500.0,0.00024657,2]
[329416186,1718328686825,-4875.13,0.00024657,2]
[329416187,1718328686840,-500.0,0.00024657,2]
[329416188,1718328686853,-500.0,0.00024657,2]
[329416189,1718328686864,-651.52,0.00024657,2]
[329416190,1718328686877,-1146.24,0.00024657,2]
[329416191,1718328686893,-500.0,0.00024657,2]
[329416192,1718328686905,-2483.67,0.00024657,2]
[329416193,1718328686922,-151.0,0.00024657,7]
[329416194,1718328686944,-1056.72,0.00024657,2]
[329416195,1718328686957,-500.0,0.00024657,2]
[329416196,1718328686985,-2980.85,0.00024657,2]
[329416197,1718328687007,-3759.26,0.00024657,2]
[329416198,1718328687036,-500.0,0.00024657,2]
[329416199,1718328687068,-500.0,0.00024657,2]
[329416200,1718328687082,-500.0,0.00024657,2]
[329416201,1718328687096,-2040.13,0.00024657,2]
[329416202,1718328687113,-500.0,0.00024657,2]
[329416203,1718328687131,-726.56,0.00024657,2]
[329416204,1718328687145,-949.95,0.00024657,2]
[329416205,1718328687157,-1419.27,0.00024657,2]
[329416206,1718328687170,-1026.42,0.00024657,2]
[329416207,1718328687185,-500.0,0.00024657,2]
[329416208,1718328687197,-592.77033596,0.00024657,2]
[329416209,1718328687224,-500.0,0.00024657,2]
[329416210,1718328687235,-1958.96,0.00024657,2]
[329416211,1718328687246,-500.0,0.00024657,2]
[329416212,1718328687258,-500.0,0.00024657,2]
[329416213,1718328687287,-500.0,0.00024657,2]
[329416214,1718328687305,-1457.15,0.00024657,2]
[329416215,1718328687318,-500.0,0.00024657,2]
[329416216,1718328687334,-151.0,0.00024657,7]
[329416217,1718328687354,-2166.24,0.00024657,2]
[329416218,1718328687371,-151.0,0.00024657,7]
[329416219,1718328687389,-1164.45,0.00024657,2]
[329416220,1718328687405,-1585.82,0.00024657,2]
[329416221,1718328687416,-1370.89,0.00024657,2]
[329416222,1718328687431,-500.0,0.00024657,2]
[329416223,1718328687442,-500.0,0.00024657,2]
[329416224,1718328687462,-500.0,0.00024657,2]
[329416225,1718328687485,-500.0,0.00024657,2]
[329416226,1718328687504,-979.9,0.00024657,2]
[329416227,1718328687522,-1246.72,0.00024657,2]
[329416228,1718328687541,-617.62,0.00024657,2]
[329416229,1718328687560,-1310.68,0.00024657,2]
[329416230,1718328687573,-976.37,0.00024657,2]
[329416231,1718328687597,-928.5,0.00024657,2]
[329416232,1718328687609,-500.0,0.00024657,2]
[329416233,1718328687622,-2479.24,0.00024657,2]
[329416234,1718328687636,-1915.78,0.00024657,2]
[329416235,1718328687649,-500.0,0.00024657,2]
[329416236,1718328687670,-9450.18,0.00024657,2]
[329416237,1718328687688,-758.88,0.00024657,2]
[329416238,1718328687712,-500.0,0.00024657,2]
[329416239,1718328687740,-4571.95,0.00024657,2]
[329416240,1718328687777,-500.0,0.00024657,2]
[329416241,1718328687797,-1010.1,0.00024657,2]
[329416242,1718328687822,-3729.75,0.00024657,2]
[329416243,1718328687835,-151.0,0.00024657,7]
[329416244,1718328687854,-1160.9,0.00024657,2]
[329416245,1718328687868,-1291.17,0.00024657,2]
[329416246,1718328687890,-1442.54,0.00024657,2]
[329416247,1718328687905,-155.560454,0.00024657,7]
[329416248,1718328687922,-500.0,0.00024657,2]
[329416249,1718328687934,-1078.82,0.00024657,2]
[329416250,1718328687948,-1437.83,0.00024657,2]
[329416251,1718328687972,-3179.39,0.00024657,2]
[329416252,1718328687989,-4644.91,0.00024657,2]
[329416253,1718328688016,-660.45,0.00024657,2]
[329416254,1718328688030,-500.0,0.00024657,2]
[329416255,1718328688060,-500.0,0.00024657,2]
[329416256,1718328688076,-500.0,0.00024657,2]
[329416257,1718328688090,-3968.87,0.00024657,2]
[329416258,1718328688109,-1085.81,0.00024657,2]
[329416259,1718328688132,-2460.17,0.00024657,2]
[329416260,1718328688167,-3852.04,0.00024657,2]
[329416261,1718328688182,-500.0,0.00024657,2]
[329416262,1718328688195,-4640.65,0.00024657,2]
[329416263,1718328688214,-500.0,0.00024657,2]
[329416264,1718328688228,-855.86,0.00024657,2]
[329416265,1718328688252,-164.775248,0.00024657,7]
[329416266,1718328688265,-164.775248,0.00024657,7]
[329416267,1718328688278,-1149.69,0.00024657,2]
[329416268,1718328688308,-151.0,0.00024657,7]
[329416269,1718328688320,-151.0,0.00024657,7]
[329416270,1718328688352,-2477.54,0.00024657,2]
[329416271,1718328688365,-781.38,0.00024657,2]
[329416272,1718328688379,-2739.81,0.00024657,2]
[329416273,1718328688393,-500.0,0.00024657,2]
[329416274,1718328688404,-164.775248,0.00024657,7]
[329416275,1718328688437,-164.775248,0.00024657,7]
[329416276,1718328688464,-500.0,0.00024657,2]
[329416277,1718328688483,-22917.63,0.00024657,2]
[329416278,1718328688496,-2363.24,0.00024657,2]
[329416279,1718328688514,-2489.52,0.00024657,2]
[329416280,1718328688527,-801.82,0.00024657,2]
[329416281,1718328688550,-1037.71,0.00024657,2]
[329416282,1718328688565,-1182.53,0.00024657,2]
[329416283,1718328688578,-500.0,0.00024657,2]
[329416284,1718328688591,-671.04,0.00024657,2]
[329416285,1718328688604,-2448.61,0.00024657,2]
[329416286,1718328688616,-709.17,0.00024657,2]
[329416287,1718328688645,-2250.55,0.00024657,2]
[329416288,1718328688667,-500.0,0.00024657,2]
[329416289,1718328688679,-151.0,0.00024657,7]
[329416290,1718328688695,-1131.25,0.00024657,2]
[329416291,1718328688709,-155.590568,0.00024657,7]
[329416292,1718328688724,-151.0,0.00024657,7]
[329416293,1718328688736,-663.02,0.00024657,2]
[329416294,1718328688751,-154.375677,0.00024657,7]
[329416295,1718328688772,-2614.62,0.00024657,2]
[329416296,1718328688802,-500.0,0.00024657,2]
[329416297,1718328688824,-500.0,0.00024657,2]
[329416298,1718328688842,-560.42,0.00024657,2]
[329416299,1718328688855,-500.0,0.00024657,2]
[329416300,1718328688867,-500.0,0.00024657,2]
[329416301,1718328688881,-3845.21,0.00024657,2]
[329416302,1718328688913,-500.0,0.00024657,2]
[329416303,1718328688923,-967.09,0.00024657,2]
[329416304,1718328688936,-500.0,0.00024657,2]
[329416305,1718328688947,-3200.03,0.00024657,2]
[329416306,1718328688960,-250.0,0.00024657,2]
[329416307,1718328688972,-500.0,0.00024657,2]
[329416308,1718328688985,-714.39,0.00024657,2]
[329416309,1718328689003,-6182.51,0.00024657,2]
[329416310,1718328689015,-2771.64,0.00024657,2]
[329416311,1718328689026,-1117.03,0.00024657,2]
[329416312,1718328689049,-500.0,0.00024657,2]
[329416313,1718328689060,-500.0,0.00024657,2]
[329416314,1718328689071,-818.88,0.00024657,2]
[329416315,1718328689081,-500.0,0.00024657,2]
[329416316,1718328689093,-13361.61,0.00024657,2]
[329416317,1718328689105,-500.0,0.00024657,2]
[329416318,1718328689125,-500.0,0.00024657,2]
[329416319,1718328689139,-1181.16,0.00024657,2]
[329416320,1718328689161,-500.0,0.00024657,2]
[329416321,1718328689174,-500.0,0.00024657,2]
[329416322,1718328689187,-500.0,0.00024657,2]
[329416323,1718328689202,-740.73,0.00024657,2]
[329416324,1718328689217,-584.95,0.00024657,2]
[329416325,1718328689230,-4766.45,0.00024657,2]
[329416326,1718328689244,-500.0,0.00024657,2]
[329416327,1718328689256,-151.0,0.00024657,7]
[329416328,1718328689269,-151.0,0.00024657,7]
[329416329,1718328689291,-932.3,0.00024657,2]
[329416330,1718328689303,-151.0,0.00024657,7]
[329416331,1718328689317,-151.0,0.00024657,7]
[329416332,1718328689329,-500.0,0.00024657,2]
[329416333,1718328689340,-500.0,0.00024657,2]
[329416334,1718328689352,-2700.76,0.00024657,2]
[329416335,1718328689371,-500.0,0.00024657,2]
[329416336,1718328689385,-151.0,0.00024657,7]
[329416337,1718328689395,-176.26334,0.00024657,7]
[329416338,1718328689407,-151.0,0.00024791,3]
[329416339,1718328689419,-860.82366226,0.00024794,2]
[329416340,1718328689430,-171.86410597,0.00024798,2]
[329416341,1718328689464,-260.39484754,0.00024798,5]
[329416342,1718328689483,-170.52636601,0.00024799,2]
[329416343,1718328689505,-15065.74566812,0.00024831,2]
[329416344,1718328689524,-500.0,0.0002493,3]
[329416345,1718328689553,-500.0,0.0002493,3]
[329416346,1718328689567,-500.0,0.00024931,3]
[329416347,1718328689581,-500.0,0.00024931,3]
[329416348,1718328689632,-500.0,0.00024931,3]
[329416349,1718328689656,-500.0,0.00024931,3]
[329416350,1718328689678,-500.0,0.00024931,3]
[329416351,1718328689691,-500.0,0.00024931,3]
[329416352,1718328689713,-500.0,0.00024931,3]
[329416353,1718328689733,-500.0,0.00024931,3]
[329416354,1718328689748,-500.0,0.00024931,3]
[329416355,1718328689764,-500.0,0.00024931,3]
[329416356,1718328689778,-500.0,0.00024931,3]
[329416357,1718328689800,-500.0,0.00024931,3]
[329416358,1718328689812,-500.0,0.00024931,3]
[329416359,1718328689827,-500.0,0.00024931,3]
[329416360,1718328689840,-500.0,0.00024931,3]
[329416361,1718328689853,-500.0,0.00024931,3]
[329416362,1718328689864,-500.0,0.00024931,3]
[329416363,1718328689877,-500.0,0.00024931,3]
[329416364,1718328689890,-500.0,0.00024931,3]
[329416365,1718328689902,-500.0,0.00024931,3]
[329416366,1718328689913,-500.0,0.00024931,3]
[329416367,1718328689923,-500.0,0.00024931,3]
[329416368,1718328689935,-500.0,0.00024931,3]
[329416369,1718328689948,-500.0,0.00024931,3]
[329416370,1718328689966,-500.0,0.00024931,3]
[329416371,1718328689978,-500.0,0.00024931,3]
[329416372,1718328689996,-500.0,0.00024931,3]
[329416373,1718328690010,-500.0,0.00024931,3]
[329416374,1718328690022,-500.0,0.00024931,3]
[329416375,1718328690033,-500.0,0.00024931,3]
[329416376,1718328690043,-500.0,0.00024931,3]
[329416377,1718328690053,-500.0,0.00024931,3]
[329416378,1718328690064,-500.0,0.00024931,3]
[329416379,1718328690081,-500.0,0.00024931,3]
[329416380,1718328690109,-500.0,0.00024931,3]
[329416381,1718328690137,-500.0,0.00024931,3]
[329416382,1718328690148,-500.0,0.00024931,3]
[329416383,1718328690165,-500.0,0.00024931,3]
[329416384,1718328690176,-500.0,0.00024931,3]
[329416385,1718328690187,-500.0,0.00024931,3]
[329416386,1718328690199,-500.0,0.00024931,3]
[329416387,1718328690210,-166.11,0.00024931,3]
[329416388,1718328690220,-500.0,0.00024931,3]
[329416389,1718328690245,-500.0,0.00024931,3]
[329416390,1718328690268,-500.0,0.00024931,3]
[329416391,1718328690278,-500.0,0.00024931,3]
[329416392,1718328690357,-500.0,0.00024931,3]
[329416393,1718328690381,-500.0,0.00024931,3]
[329416394,1718328690410,-500.0,0.00024931,3]
[329416395,1718328690422,-378.63046968,0.00024931,3]
[329416396,1718328690434,-500.0,0.00024931,3]
[329416397,1718328690450,-500.0,0.00024931,3]
[329416398,1718328690464,-500.0,0.00024931,3]
[329416399,1718328690489,-500.0,0.00024931,3]
[329416400,1718328690525,-500.0,0.00024931,3]
[329416401,1718328690536,-500.0,0.00024931,3]
[329416402,1718328690554,-500.0,0.00024931,3]
[329416403,1718328690568,-500.0,0.00024931,3]
[329416404,1718328690587,-500.0,0.00024931,3]
[329416405,1718328690602,-500.0,0.00024931,3]
[329416406,1718328690615,-500.0,0.00024931,3]
[329416407,1718328690630,-500.0,0.00024931,3]
[329416408,1718328690643,-500.0,0.00024931,3]
[329416409,1718328690654,-500.0,0.00024931,3]
[329416410,1718328690666,-500.0,0.00024931,3]
[329416411,1718328690680,-500.0,0.00024931,3]
[329416412,1718328690691,-500.0,0.00024931,3]
[329416413,1718328690707,-500.0,0.00024931,3]
[329416414,1718328690720,-500.0,0.00024931,3]
[329416415,1718328690736,-500.0,0.00024931,3]
[329416416,1718328690759,-500.0,0.00024931,3]
[329416417,1718328690792,-500.0,0.00024931,3]
[329416418,1718328690815,-500.0,0.00024931,3]
[329416419,1718328690826,-500.0,0.00024931,3]
[329416420,1718328690845,-500.0,0.00024931,3]
[329416421,1718328690866,-500.0,0.00024931,3]
[329416422,1718328690900,-535.98,0.00024931,3]
[329416423,1718328690913,-500.0,0.00024931,3]
[329416424,1718328690931,-500.0,0.00024931,3]
[329416425,1718328690941,-500.0,0.00024931,3]
[329416426,1718328690953,-500.0,0.00024931,3]
[329416427,1718328690964,-500.0,0.00024931,3]
[329416428,1718328690976,-500.0,0.00024931,3]
[329416429,1718328690990,-500.0,0.00024931,3]
[329416430,1718328691010,-500.0,0.00024931,3]
[329416431,1718328691020,-500.0,0.00024931,3]
[329416432,1718328691037,-500.0,0.00024931,3]
[329416433,1718328691087,-500.0,0.00024931,3]
[329416434,1718328691106,-200.0,0.00024931,3]
[329416435,1718328691149,-500.0,0.00024931,3]
[329416436,1718328691178,-500.0,0.00024931,3]
[329416437,1718328691207,-500.0,0.00024931,3]
[329416438,1718328691243,-500.0,0.00024931,3]
[329416439,1718328691286,-500.0,0.00024931,3]
[329416440,1718328691297,-500.0,0.00024931,3]
[329416441,1718328691308,-500.0,0.00024931,3]
[329416442,1718328691321,-500.0,0.00024931,3]
[329416443,1718328691337,-539.14,0.00024931,3]
[329416444,1718328691348,-500.0,0.00024931,3]
[329416445,1718328691360,-500.0,0.00024931,3]
[329416446,1718328691377,-500.0,0.00024931,3]
[329416447,1718328691388,-500.0,0.00024931,3]
[329416448,1718328691399,-500.0,0.00024931,3]
[329416449,1718328691412,-500.0,0.00024931,3]
[329416450,1718328691426,-500.0,0.00024931,3]
[329416451,1718328691438,-539.62,0.00024931,3]
[329416452,1718328691459,-500.0,0.00024931,3]
[329416453,1718328691475,-500.0,0.00024931,3]
[329416454,1718328691499,-500.0,0.00024931,3]
[329416455,1718328691513,-500.0,0.00024931,3]
[329416456,1718328691538,-804.49,0.00024931,3]
[329416457,1718328691549,-500.0,0.00024931,3]
[329416458,1718328691560,-500.0,0.00024931,3]
[329416459,1718328691584,-500.0,0.00024931,3]
[329416460,1718328691604,-500.0,0.00024931,3]
[329416461,1718328691656,-500.0,0.00024931,3]
[329416462,1718328691676,-500.0,0.00024931,3]
[329416463,1718328691687,-572.62,0.00024931,3]
[329416464,1718328691701,-500.0,0.00024931,2]
[329416465,1718328691720,-500.0,0.00024931,3]
[329416466,1718328691737,-500.0,0.00024931,3]
[329416467,1718328691756,-500.0,0.00024931,3]
[329416468,1718328691767,-500.0,0.00024931,3]
[329416469,1718328691778,-500.0,0.00024931,3]
[329416470,1718328691790,-500.0,0.00024931,3]
[329416471,1718328691818,-774.54,0.00024931,3]
[329416472,1718328691832,-986.18,0.00024931,3]
[329416473,1718328691843,-500.0,0.00024931,3]
[329416474,1718328691854,-500.0,0.00024931,3]
[329416475,1718328691870,-500.0,0.00024931,3]
[329416476,1718328691882,-500.0,0.00024931,3]
[329416477,1718328691896,-500.0,0.00024931,3]
[329416478,1718328691908,-500.0,0.00024931,3]
[329416479,1718328691928,-500.0,0.00024931,3]
[329416480,1718328691939,-500.0,0.00024931,3]
[329416481,1718328691950,-500.0,0.00024931,3]
[329416482,1718328691963,-1157.92,0.00024931,3]
[329416483,1718328692004,-500.0,0.00024931,3]
[329416484,1718328692018,-500.0,0.00024931,3]
[329416485,1718328692046,-500.0,0.00024931,3]
[329416486,1718328692062,-500.0,0.00024931,3]
[329416487,1718328692082,-500.0,0.00024931,3]
[329416488,1718328692107,-500.0,0.00024931,3]
[329416489,1718328692120,-500.0,0.00024931,3]
[329416490,1718328692131,-500.0,0.00024931,3]
[329416491,1718328692142,-500.0,0.00024931,3]
[329416492,1718328692169,-500.0,0.00024931,3]
[329416493,1718328692180,-500.0,0.00024931,3]
[329416494,1718328692196,-500.0,0.00024931,3]
[329416495,1718328692208,-500.0,0.00024931,3]
[329416496,1718328692228,-500.0,0.00024931,3]
[329416497,1718328692243,-500.0,0.00024931,3]
[329416498,1718328692265,-203.33701125,0.00024931,3]
[329416499,1718328692284,-500.0,0.00024931,3]
[329416500,1718328692300,-500.0,0.00024931,3]
[329416501,1718328692316,-500.0,0.00024931,3]
[329416502,1718328692346,-168.66048771,0.00024931,3]
[329416503,1718328692393,-500.0,0.00024931,3]
[329416504,1718328692413,-500.0,0.00024931,3]
[329416505,1718328692452,-500.0,0.00024931,3]
[329416506,1718328692486,-500.0,0.00024931,3]
[329416507,1718328692532,-501.69,0.00024931,3]
[329416508,1718328692556,-500.0,0.00024931,3]
[329416509,1718328692581,-500.0,0.00024931,3]
[329416510,1718328692604,-500.0,0.00024931,3]
[329416511,1718328692640,-500.0,0.00024931,3]
[329416512,1718328692652,-500.0,0.00024931,3]
[329416513,1718328692673,-500.0,0.00024931,3]
[329416514,1718328692738,-500.0,0.00024931,3]
[329416515,1718328692751,-500.0,0.00024931,3]
[329416516,1718328692763,-500.0,0.00024931,3]
[329416517,1718328692786,-611.61,0.00024931,3]
[329416518,1718328692812,-583.88,0.00024931,3]
[329416519,1718328692829,-500.0,0.00024931,3]
[329416520,1718328692848,-500.0,0.00024931,3]
[329416521,1718328692875,-500.0,0.00024931,3]
[329416522,1718328692908,-500.0,0.00024931,3]
[329416523,1718328692931,-500.0,0.00024931,3]
[329416524,1718328692947,-500.0,0.00024931,3]
[329416525,1718328692961,-548.53,0.00024931,3]
[329416526,1718328692972,-500.0,0.00024931,3]
[329416527,1718328692992,-500.0,0.00024931,3]
[329416528,1718328693006,-500.0,0.00024931,3]
[329416529,1718328693019,-500.0,0.00024931,3]
[329416530,1718328693041,-692.1,0.00024931,3]
[329416531,1718328693055,-500.0,0.00024931,3]
[329416532,1718328693067,-500.0,0.00024931,3]
[329416533,1718328693079,-634.92,0.00024931,3]
[329416534,1718328693090,-500.0,0.00024931,3]
[329416535,1718328693115,-500.0,0.00024931,3]
[329416536,1718328693134,-500.0,0.00024931,3]
[329416537,1718328693157,-588.02,0.00024931,3]
[329416538,1718328693171,-500.0,0.00024931,3]
[329416539,1718328693182,-500.0,0.00024931,3]
[329416540,1718328693193,-514.09420743,0.00024931,3]
[329416541,1718328693203,-500.0,0.00024931,3]
[329416542,1718328693214,-660.68,0.00024931,3]
[329416543,1718328693225,-960.66,0.00024931,3]
[329416544,1718328693236,-500.0,0.00024931,3]
[329416545,1718328693247,-500.0,0.00024931,3]
[329416546,1718328693258,-500.0,0.00024931,3]
[329416547,1718328693269,-1302.28,0.00024931,3]
[329416548,1718328693280,-500.0,0.00024931,3]
[329416549,1718328693294,-500.0,0.00024931,3]
[329416550,1718328693305,-500.0,0.00024931,3]
[329416551,1718328693317,-500.0,0.00024931,3]
[329416552,1718328693337,-500.0,0.00024931,3]
[329416553,1718328693352,-617.28,0.00024931,3]
[329416554,1718328693363,-500.0,0.00024931,3]
[329416555,1718328693376,-500.0,0.00024931,3]
[329416556,1718328693391,-500.0,0.00024931,3]
[329416557,1718328693420,-565.86,0.00024931,3]
[329416558,1718328693435,-500.0,0.00024931,3]
[329416559,1718328693461,-500.0,0.00024931,3]
[329416560,1718328693473,-500.0,0.00024931,3]
[329416561,1718328693497,-500.0,0.00024931,3]
[329416562,1718328693523,-500.0,0.00024931,3]
[329416563,1718328693534,-500.0,0.00024931,3]
[329416564,1718328693547,-883.98,0.00024931,3]
[329416565,1718328693567,-500.0,0.00024931,3]
[329416566,1718328693579,-528.45,0.00024931,3]
[329416567,1718328693594,-500.0,0.00024931,3]
[329416568,1718328693606,-500.0,0.00024931,3]
[329416569,1718328693620,-742.73,0.00024931,3]
[329416570,1718328693634,-500.0,0.00024931,3]
[329416571,1718328693647,-500.0,0.00024931,3]
[329416572,1718328693659,-500.0,0.00024931,3]
[329416573,1718328693672,-500.0,0.00024931,3]
[329416574,1718328693683,-500.0,0.00024931,3]
[329416575,1718328693695,-500.0,0.00024931,3]
[329416576,1718328693711,-500.0,0.00024931,3]
[329416577,1718328693735,-500.0,0.00024931,3]
[329416578,1718328693757,-500.0,0.00024931,3]
[329416579,1718328693769,-500.0,0.00024931,3]
[329416580,1718328693803,-500.0,0.00024931,3]
[329416581,1718328693836,-500.0,0.00024931,3]
[329416582,1718328693861,-500.0,0.00024931,3]
[329416583,1718328693873,-500.0,0.00024931,3]
[329416584,1718328693888,-500.0,0.00024931,3]
[329416585,1718328693900,-500.0,0.00024931,3]
[329416586,1718328693912,-500.0,0.00024931,3]
[329416587,1718328693923,-500.0,0.00024931,3]
[329416588,1718328693937,-598.84,0.00024931,3]
[329416589,1718328693948,-500.0,0.00024931,3]
[329416590,1718328693984,-500.0,0.00024931,3]
[329416591,1718328694009,-500.0,0.00024931,3]
[329416592,1718328694020,-500.0,0.00024931,3]
[329416593,1718328694040,-500.0,0.00024931,3]
[329416594,1718328694052,-500.0,0.00024931,3]
[329416595,1718328694070,-500.0,0.00024931,3]
[329416596,1718328694090,-719.93,0.00024931,3]
[329416597,1718328694119,-500.0,0.00024931,3]
[329416598,1718328694146,-500.0,0.00024931,3]
[329416599,1718328694161,-500.0,0.00024931,3]
[329416600,1718328694173,-500.0,0.00024931,3]
[329416601,1718328694184,-327.03013747,0.00024931,3]
[329416602,1718328694197,-500.0,0.00024931,3]
[329416603,1718328694208,-500.0,0.00024931,3]
[329416604,1718328694221,-500.0,0.00024931,3]
[329416605,1718328694244,-500.0,0.00024931,3]
[329416606,1718328694264,-500.0,0.00024931,3]
[329416607,1718328694282,-500.0,0.00024931,3]
[329416608,1718328694297,-500.0,0.00024931,3]
[329416609,1718328694314,-500.0,0.00024931,3]
[329416610,1718328694327,-500.0,0.00024931,3]
[329416611,1718328694348,-500.0,0.00024931,3]
[329416612,1718328694361,-500.0,0.00024931,3]
[329416613,1718328694373,-500.0,0.00024931,3]
[329416614,1718328694393,-500.0,0.00024931,3]
[329416615,1718328694410,-500.0,0.00024931,3]
[329416616,1718328694423,-997.89,0.00024931,3]
[329416617,1718328694449,-500.0,0.00024931,3]
[329416618,1718328694473,-500.0,0.00024931,3]
[329416619,1718328694519,-500.0,0.00024931,3]
[329416620,1718328694535,-500.0,0.00024931,3]
[329416621,1718328694549,-500.0,0.00024931,3]
[329416622,1718328694562,-1232.27,0.00024931,3]
[329416623,1718328694574,-500.0,0.00024931,3]
[329416624,1718328694603,-500.0,0.00024931,3]
[329416625,1718328694615,-500.0,0.00024931,3]
[329416626,1718328694630,-500.0,0.00024931,3]
[329416627,1718328694644,-500.0,0.00024931,3]
[329416628,1718328694657,-500.0,0.00024931,3]
[329416629,1718328694669,-695.7,0.00024931,3]
[329416630,1718328694683,-500.0,0.00024931,3]
[329416631,1718328694700,-545.28,0.00024931,3]
[329416632,1718328694726,-552.3,0.00024931,3]
[329416633,1718328694739,-500.0,0.00024931,3]
[329416634,1718328694754,-500.0,0.00024931,3]
[329416635,1718328694767,-500.0,0.00024931,3]
[329416636,1718328694779,-500.0,0.00024931,3]
[329416637,1718328694801,-500.0,0.00024931,3]
[329416638,1718328694815,-500.0,0.00024931,3]
[329416639,1718328694828,-922.06,0.00024931,3]
[329416640,1718328694840,-500.0,0.00024931,3]
[329416641,1718328694853,-1020.66,0.00024931,3]
[329416642,1718328694864,-500.0,0.00024931,3]
[329416643,1718328694875,-1333.56,0.00024931,3]
[329416644,1718328694886,-500.0,0.00024931,3]
[329416645,1718328694898,-578.22,0.00024931,3]
[329416646,1718328694909,-500.0,0.00024931,3]
[329416647,1718328694921,-500.0,0.00024931,3]
[329416648,1718328694933,-500.0,0.00024931,3]
[329416649,1718328694957,-500.0,0.00024931,3]
[329416650,1718328694970,-904.07,0.00024931,3]
[329416651,1718328694983,-500.0,0.00024931,3]
[329416652,1718328694996,-500.0,0.00024931,3]
[329416653,1718328695012,-556.85,0.00024931,3]
[329416654,1718328695028,-500.0,0.00024931,3]
[329416655,1718328695041,-903.49,0.00024931,3]
[329416656,1718328695053,-500.0,0.00024931,3]
[329416657,1718328695065,-500.0,0.00024931,3]
[329416658,1718328695079,-333.89897003,0.00024931,3]
[329416659,1718328695092,-500.0,0.00024931,3]
[329416660,1718328695107,-512.2,0.00024931,3]
[329416661,1718328695125,-500.0,0.00024931,3]
[329416662,1718328695146,-1002.39,0.00024931,3]
[329416663,1718328695189,-738.2,0.00024931,3]
[329416664,1718328695205,-191.4698319,0.00024931,3]
[329416665,1718328695231,-500.0,0.00024931,3]
[329416666,1718328695258,-510.69786886,0.00024931,3]
[329416667,1718328695274,-500.0,0.00024931,3]
[329416668,1718328695289,-500.0,0.00024931,3]
[329416669,1718328695323,-500.0,0.00024931,3]
[329416670,1718328695343,-500.0,0.00024931,3]
[329416671,1718328695365,-798.44,0.00024931,3]
[329416672,1718328695410,-500.0,0.00024931,3]
[329416673,1718328695434,-262.1,0.00024931,3]
[329416674,1718328695456,-500.0,0.00024931,3]
[329416675,1718328695473,-500.0,0.00024931,3]
[329416676,1718328695515,-500.0,0.00024931,3]